bitfinex-derivatives/quotes_SOLF0:USTF0_20240927
["timestamp","ask_amount","ask_price","bid_price","bid_amount"]
[1727462797233,9.74,157.83,157.72,6.3383]
[1727462797443,9.74,157.82,157.77,9.74]
[1727462798240,9.74,157.82,157.78,3.168]
[1727462798241,3.1677,157.81,157.78,3.168]
[1727462798744,3.1677,157.81,157.78,12.908]
[1727462799844,3.1674,157.82,157.79,3.1679]
[1727462800145,1.328,157.84,157.79,9.74]
[1727462800344,1.328,157.84,157.82,9.74]
[1727462800546,1.2979,157.85,157.82,9.74]
[1727462800942,4.4647,157.85,157.82,12.9072]
[1727462801546,4.4647,157.85,157.82,9.74]
[1727462802861,3.1666,157.86,157.82,9.74]
[1727462803252,3.1666,157.86,157.84,9.74]
[1727462804251,3.1666,157.86,157.84,12.9069]
[1727462805147,3.1664,157.87,157.85,3.1667]
[1727462805350,3.1664,157.87,157.84,9.74]
[1727462809354,3.1664,157.87,157.85,3.1667]
[1727462809757,3.1664,157.87,157.84,12.9068]
[1727462809956,3.1664,157.87,157.84,3.1668]
[1727462810153,3.1664,157.87,157.84,12.9068]
[1727462815350,1.2984,157.9,157.86,9.74]
[1727462816357,9.74,157.89,157.78,6.336]
[1727462816556,9.74,157.89,157.84,9.74]
[1727462817456,9.74,157.88,157.83,9.74]
[1727462817872,3.1667,157.86,157.83,12.907]
[1727462818057,9.74,157.88,157.83,12.907]
[1727462818761,9.74,157.87,157.82,12.9072]
[1727462819267,3.1668,157.85,157.83,3.1671]
[1727462821469,3.1666,157.86,157.83,12.9071]
[1727462822358,3.1666,157.86,157.84,3.1669]
[1727462823762,3.1662,157.88,157.85,9.74]
[1727462824267,3.1662,157.88,157.86,3.1664]
[1727462825463,1.2984,157.9,157.86,9.74]
[1727462825862,4.4642,157.9,157.87,12.9063]
[1727462826051,1.2984,157.9,157.89,9.74]
[1727462826464,1.3168,157.91,157.89,9.74]
[1727462827068,66.58505583,157.92,157.9,9.74]
[1727462827268,1.357,157.93,157.9,9.74]
[1727462827464,3.1652,157.93,157.9,12.9056]
[1727462828365,3.1654,157.92,157.9,12.9056]
[1727462830471,3.1656,157.91,157.89,9.74]
[1727462830768,12.89791426,157.92,157.87,9.74]
[1727462830970,9.74,157.92,157.87,9.74]
[1727462831165,3.1658,157.9,157.87,9.74]
[1727462831369,12.85040301,157.92,157.87,9.74]
[1727462832071,3.1656,157.91,157.88,3.1661]
[1727462832771,3.1658,157.9,157.87,12.9062]
[1727462833575,3.1659,157.89,157.87,12.9062]
[1727462834073,3.1659,157.89,157.87,3.1662]
[1727462834473,9.74,157.91,157.86,9.74]
[1727462834670,9.74,157.9,157.85,12.9066]
[1727462835565,3.1663,157.88,157.85,12.9066]
[1727462835773,9.74,157.9,157.85,12.9066]
[1727462836974,3.1663,157.88,157.85,12.9066]
[1727462837370,3.1664,157.87,157.85,9.74]
[1727462837974,9.74,157.89,157.81,78.59723699]
[1727462838175,9.74,157.89,157.84,9.74]
[1727462838575,9.74,157.87,157.83,9.74]
[1727462839374,3.1666,157.86,157.83,12.907]
[1727462841792,3.1666,157.86,157.84,9.74]
[1727462842593,3.1664,157.87,157.84,12.9069]
[1727462842795,12.62303676,157.88,157.85,9.74]
[1727462842989,9.88733676,157.9,157.86,9.74]
[1727462843290,3.1662,157.88,157.86,12.9065]
[1727462843487,9.88733676,157.9,157.86,9.74]
[1727462843689,11.16673676,157.91,157.86,9.74]
[1727462844590,11.16673676,157.91,157.89,9.74]
[1727462844591,9.88733676,157.91,157.89,9.74]
[1727462844786,2.5834,157.93,157.89,9.74]
[1727462845885,3.1657,157.91,157.89,9.74]
[1727462851294,3.1657,157.91,157.89,12.9059]
[1727462851681,9.88733676,157.93,157.9,9.74]
[1727462851890,4.44542896,157.94,157.93,3.1651]
[1727462852993,4.44542896,157.94,157.92,3.1653]
[1727462853202,4.44542896,157.94,157.93,9.74]
[1727462854210,4.44542896,157.94,157.92,12.9053]
[1727462854702,4.44542896,157.94,157.81,78.68250346]
[1727462854892,4.44542896,157.94,157.91,9.74]
[1727462855398,7.61042896,157.94,157.91,12.9055]
[1727462855899,3.1651,157.93,157.91,9.74]
[1727462856601,7.61042896,157.94,157.91,12.9055]
[1727462856999,17.48819017,157.94,157.91,12.9055]
[1727462858108,3.1651,157.93,157.91,12.9055]
[1727462858404,24.06319017,157.94,157.81,78.68250346]
[1727462858601,9.74,157.91,157.87,9.74]
[1727462858995,9.74,157.91,157.88,9.74]
[1727462859293,3.1656,157.91,157.88,12.906]
[1727462860696,13.05784738,157.92,157.9,9.74]
[1727462860697,9.87776121,157.92,157.9,9.74]
[1727462861004,12.48866121,157.93,157.9,9.74]
[1727462861195,2.6109,157.93,157.9,9.74]
[1727462861798,3.1653,157.92,157.9,12.9057]
[1727462862505,3.1653,157.92,157.9,3.1657]
[1727462864793,3.1653,157.92,157.89,12.9058]
[1727462865902,9.74,157.91,157.88,3.166]
[1727462867102,3.10438492,157.92,157.87,9.74]
[1727462867308,3.1656,157.91,157.87,9.74]
[1727462867511,3.1656,157.91,157.88,3.1661]
[1727462867708,3.1656,157.91,157.87,9.74]
[1727462868117,3.1656,157.91,157.88,3.1661]
[1727462870111,3.1656,157.91,157.87,3.1663]
[1727462870112,9.74,157.91,157.87,3.1663]
[1727462870614,3.1659,157.89,157.87,3.1663]
[1727462871023,9.74,157.91,157.87,3.1663]
[1727462871216,9.74,157.91,157.88,3.1661]
[1727462871717,3.1658,157.9,157.87,3.1662]
[1727462872008,9.74,157.88,157.83,9.74]
[1727462872402,12.9062,157.88,157.85,3.1666]
[1727462872609,12.9062,157.88,157.83,9.74]
[1727462872811,12.9062,157.88,157.85,3.1666]
[1727462874611,12.9064,157.87,157.84,3.1668]
[1727462874810,9.74,157.87,157.83,9.74]
[1727462875010,12.9064,157.87,157.83,9.74]
[1727462875522,9.74,157.87,157.83,9.74]
[1727462876821,9.74,157.87,157.85,3.1666]
[1727462877723,12.9063,157.88,157.85,3.1666]
[1727462880723,3.1664,157.87,157.85,3.1666]
[1727462882329,12.9064,157.87,157.85,3.1666]
[1727462883011,9.74,157.89,157.86,3.1665]
[1727462883220,3.10438492,157.92,157.85,9.74]
[1727462883221,12.99143372,157.92,157.85,9.74]
[1727462883426,9.74,157.91,157.85,9.74]
[1727462883727,9.74,157.9,157.85,9.74]
[1727462884229,9.8870488,157.92,157.86,9.74]
[1727462884414,3.11923127,157.92,157.88,9.74]
[1727462884619,12.3509,157.93,157.88,9.74]
[1727462885018,15.48818596,157.93,157.88,9.74]
[1727462885417,3.1654,157.92,157.89,3.1658]
[1727462891530,3.1654,157.92,157.88,9.74]
[1727462892039,9.74,157.92,157.87,9.74]
[1727462892533,3.1657,157.91,157.88,3.166]
[1727462893531,13.06184923,157.91,157.88,3.166]
[1727462893727,3.1657,157.91,157.88,3.166]
[1727462896747,9.89614923,157.92,157.9,9.74]
[1727462896935,4.44542896,157.94,157.91,9.74]
[1727462897130,14.33986854,157.94,157.93,9.74]
[1727462897425,4.44542896,157.94,157.93,9.74]
[1727462898227,4.44542896,157.94,157.93,12.9051]
[1727462899442,4.44542896,157.94,157.93,3.1651]
[1727462900545,4.44542896,157.94,157.92,3.1653]
[1727462900731,4.44542896,157.94,157.92,12.9053]
[1727462903143,4.44542896,157.94,157.93,12.9051]
[1727462904149,4.44542896,157.94,157.93,3.1651]
[1727462907455,4.44542896,157.94,157.93,12.9051]
[1727462909052,14.18542896,157.94,157.82,3.15154506]
[1727462909255,14.18542896,157.94,157.88,9.74]
[1727462910256,14.18542896,157.94,157.86,3.24252612]
[1727462910554,14.18542896,157.94,157.75,9.5062]
[1727462910555,14.18542896,157.94,157.89,9.74]
[1727462910752,3.1652,157.93,157.9,3.1657]
[1727462913660,14.33494947,157.94,157.91,3.1654]
[1727462913661,17.50004947,157.94,157.91,3.1654]
[1727462915551,3.1652,157.93,157.91,3.1654]
[1727462915751,3.1652,157.93,157.9,3.1656]
[1727462916151,13.05500704,157.93,157.9,3.1656]
[1727462916460,3.1654,157.92,157.9,3.1656]
[1727462916660,3.1654,157.92,157.89,12.9058]
[1727462917157,3.1654,157.92,157.9,3.1657]
[1727462918465,13.05500704,157.93,157.9,3.1657]
[1727462921470,9.74,157.92,157.85,3.19773518]
[1727462921660,9.88980704,157.93,157.87,9.74]
[1727462921860,9.74,157.92,157.87,9.74]
[1727462922062,3.1656,157.91,157.88,3.166]
[1727462922861,3.1658,157.9,157.87,12.9062]
[1727462923967,3.1658,157.9,157.88,3.1661]
[1727462924462,12.9056,157.91,157.88,3.1661]
[1727462924669,9.74,157.92,157.89,12.9059]
[1727462924867,12.9055,157.92,157.89,12.9059]
[1727462925163,9.74,157.92,157.89,9.74]
[1727462925368,3.1653,157.93,157.89,9.74]
[1727462925971,14.18542896,157.94,157.89,9.74]
[1727462926769,3.1653,157.92,157.89,12.9058]
[1727462927068,12.9053,157.92,157.89,12.9058]
[1727462931065,9.74,157.92,157.89,9.74]
[1727462931771,12.9053,157.92,157.89,12.9058]
[1727462932368,9.74,157.92,157.9,3.1655]
[1727462932969,12.9053,157.92,157.89,12.9058]
[1727462933975,9.74,157.91,157.86,9.74]
[1727462934470,9.74,157.91,157.86,12.9065]
[1727462934471,3.166,157.89,157.86,12.9065]
[1727462934778,3.166,157.89,157.86,3.1665]
[1727462934965,3.166,157.89,157.85,9.74]
[1727462935164,12.9058,157.9,157.87,3.1663]
[1727462936973,3.1658,157.9,157.87,3.1663]
[1727462939775,9.74,157.92,157.88,9.74]
[1727462940469,3.1657,157.91,157.88,12.906]
[1727462940670,12.93065562,157.91,157.86,9.74]
[1727462940871,9.74,157.91,157.86,9.74]
[1727462941076,12.9056,157.91,157.88,3.1661]
[1727462941473,16.03480548,157.91,157.88,3.1661]
[1727462942072,3.1656,157.91,157.88,3.1661]
[1727462942272,3.1656,157.91,157.88,12.9061]
[1727462945965,12.9057,157.9,157.87,3.1662]
[1727462949670,3.1659,157.89,157.87,3.1662]
[1727462949878,12.9059,157.89,157.86,3.1664]
[1727462951682,12.9059,157.89,157.87,3.1663]
[1727462953292,3.1659,157.89,157.87,3.1663]
[1727462954787,3.1658,157.9,157.85,9.74]
[1727462954993,9.74,157.92,157.87,9.74]
[1727462956995,12.9055,157.92,157.89,3.1658]
[1727462957491,4.44542896,157.94,157.89,9.74]
[1727462957686,7.68854672,157.94,157.9,9.74]
[1727462957888,17.58855855,157.94,157.9,9.74]
[1727462958589,27.32855855,157.94,157.89,9.74]
[1727462958789,27.32855855,157.94,157.9,3.1656]
[1727462958790,3.1651,157.93,157.9,3.1656]
[1727462959795,3.1651,157.93,157.89,9.74]
[1727462959796,3.1653,157.92,157.89,3.1658]
[1727462960886,12.9053,157.92,157.89,3.1658]
[1727462963194,12.9053,157.92,157.87,9.74]
[1727462963195,12.9053,157.92,157.9,3.1657]
[1727462963390,13.06604873,157.93,157.89,9.74]
[1727462963597,12.9052,157.93,157.89,9.74]
[1727462963890,19.64084873,157.93,157.91,3.1654]
[1727462964897,22.80604873,157.93,157.91,3.1654]
[1727462968191,13.06604873,157.93,157.91,3.1654]
[1727462968393,12.9052,157.93,157.91,3.1654]
[1727462969895,12.9052,157.93,157.9,3.1656]
[1727462970091,12.9052,157.93,157.82,3.16479823]
[1727462970092,9.74,157.92,157.82,3.16479823]
[1727462970291,9.74,157.9,157.85,9.74]
[1727462970883,9.74,157.9,157.88,3.166]
[1727462971789,3.1656,157.91,157.88,3.166]
[1727462972801,3.1656,157.91,157.89,3.1659]
[1727462973496,3.1656,157.91,157.87,9.74]
[1727462973497,9.74,157.91,157.87,3.1662]
[1727462973997,3.1658,157.9,157.87,3.1662]
[1727462975700,3.1658,157.9,157.87,12.9062]
[1727462978405,9.74,157.92,157.87,9.74]
[1727462979899,3.1658,157.9,157.88,3.166]
[1727462981904,3.1659,157.89,157.87,3.1662]
[1727462983498,3.1658,157.9,157.87,12.9062]
[1727462985497,9.9037136,157.93,157.89,9.74]
[1727462985700,9.9037136,157.93,157.9,9.74]
[1727462985903,14.34914256,157.94,157.9,9.74]
[1727462986399,3.1653,157.93,157.9,9.74]
[1727462987810,3.1653,157.93,157.9,3.1656]
[1727462988009,3.1654,157.92,157.9,3.1656]
[1727462988310,3.1654,157.92,157.89,9.74]
[1727462989006,3.1654,157.92,157.89,12.9057]
[1727462990003,9.9037136,157.93,157.9,9.74]
[1727462990401,3.1652,157.93,157.9,12.9056]
[1727462991796,3.1653,157.92,157.9,12.9056]
[1727462997407,3.1652,157.93,157.91,3.1655]
[1727462998111,17.51414256,157.94,157.91,9.74]
[1727462998308,14.34914256,157.94,157.91,9.74]
[1727462998709,3.1652,157.93,157.91,12.9054]
[1727463001905,3.1653,157.92,157.91,9.74]
[1727463002112,3.1653,157.92,157.9,12.9057]
[1727463002917,14.34914256,157.94,157.89,3.1658]
[1727463003224,14.34914256,157.94,157.9,9.74]
[1727463003920,3.1654,157.92,157.9,9.74]
[1727463004121,14.34914256,157.94,157.91,9.74]
[1727463004512,13.0689136,157.93,157.91,9.74]
[1727463005116,4.44542896,157.94,157.92,9.74]
[1727463005320,4.44542896,157.94,157.93,9.74]
[1727463006011,7.61032896,157.94,157.93,9.74]
[1727463008312,3.1652,157.93,157.91,3.1655]
[1727463008609,4.44542896,157.94,157.9,12.9056]
[1727463008819,3.1656,157.91,157.89,9.74]
[1727463009207,14.18542896,157.94,157.89,12.9058]
[1727463009621,4.44542896,157.94,157.89,12.9058]
[1727463009812,3.1654,157.92,157.89,12.9058]
[1727463010824,3.1654,157.92,157.9,3.1657]
[1727463011526,3.1652,157.93,157.91,9.74]
[1727463011729,4.44542896,157.94,157.92,9.74]
[1727463012134,4.44542896,157.94,157.93,9.74]
[1727463012320,4.44542896,157.94,157.85,6.3332]
[1727463012519,4.44542896,157.94,157.93,9.74]
[1727463013029,4.44542896,157.94,157.93,12.9051]
[1727463013518,1.78932249,157.95,157.94,3.1649]
[1727463018128,5.40248867,157.96,157.95,3.1647]
[1727463018332,5.40248867,157.96,157.95,12.9047]
[1727463023134,6.44791804,157.98,157.97,3.1643]
[1727463023340,4.80707939,157.99,157.97,9.74]
[1727463023726,4.80707939,157.99,157.98,9.74]
[1727463023931,4.80707939,157.99,157.98,12.9041]
[1727463025329,4.80707939,157.99,157.98,9.74]
[1727463025638,4.80707939,157.99,157.97,9.74]
[1727463026639,7.97107939,157.99,157.98,9.74]
[1727463026841,4.80707939,157.99,157.97,9.74]
[1727463027945,4.80707939,157.99,157.98,9.74]
[1727463028335,4.80707939,157.99,157.98,12.9041]
[1727463028839,4.80707939,157.99,157.98,9.74]
[1727463028840,7.97097939,157.99,157.98,9.74]
[1727463030049,4.80707939,157.99,157.98,9.74]
[1727463031144,7.97097939,157.99,157.98,9.74]
[1727463031344,4.80707939,157.99,157.97,9.74]
[1727463031746,3.1641,157.98,157.97,9.74]
[1727463032251,7.97107939,157.99,157.97,9.74]
[1727463036762,3.1642,157.98,157.96,9.74]
[1727463037265,3.1641,157.98,157.96,9.74]
[1727463038763,3.1643,157.97,157.95,3.1647]
[1727463038963,3.1643,157.97,157.96,9.74]
[1727463039658,3.1642,157.98,157.96,9.74]
[1727463048868,7.97107939,157.99,157.96,9.74]
[1727463049070,7.97107939,157.99,157.97,9.74]
[1727463049863,7.97107939,157.99,157.97,12.9042]
[1727463052972,4.80707939,157.99,157.97,12.9042]
[1727463053764,7.97097939,157.99,157.97,12.9042]
[1727463055068,3.1641,157.98,157.92,3.16727856]
[1727463055269,3.1641,157.98,157.96,9.74]
[1727463055472,3.1641,157.98,157.96,12.9044]
[1727463056372,3.1644,157.97,157.95,3.1646]
[1727463057773,3.1642,157.98,157.95,3.1646]
[1727463058168,14.54707939,157.99,157.95,3.1646]
[1727463058579,3.1642,157.98,157.95,3.1646]
[1727463059383,14.54707939,157.99,157.95,3.1646]
[1727463060577,3.1642,157.98,157.95,3.1646]
[1727463061375,4.80707939,157.99,157.97,9.74]
[1727463061580,4.80707939,157.99,157.98,9.74]
[1727463062078,4.80707939,157.99,157.95,9.74]
[1727463062079,14.54707939,157.99,157.95,9.74]
[1727463062583,3.1642,157.98,157.95,12.9046]
[1727463065979,14.54707939,157.99,157.87,9.56142787]
[1727463066185,4.80707939,157.99,157.96,9.74]
[1727463066982,7.97117939,157.99,157.96,9.74]
[1727463067183,4.80707939,157.99,157.96,9.74]
[1727463067386,3.1642,157.98,157.95,9.74]
[1727463067888,9.74,157.98,157.9,3.15979659]
[1727463068088,19.6258913,157.98,157.93,9.74]
[1727463068384,3.1644,157.97,157.93,12.905]
[1727463070279,3.1644,157.97,157.94,3.1649]
[1727463070683,3.1644,157.97,157.94,12.9049]
[1727463072487,3.1645,157.96,157.93,3.1651]
[1727463072686,9.74,157.97,157.91,9.74]
[1727463072877,11.0571,157.97,157.91,9.74]
[1727463073075,3.1651,157.94,157.91,12.9054]
[1727463073390,12.93439199,157.93,157.81,75.49633304]
[1727463073577,12.9056,157.91,157.86,9.74]
[1727463073782,9.74,157.91,157.81,75.49633304]
[1727463074077,9.74,157.91,157.86,9.74]
[1727463074483,3.1658,157.9,157.87,3.1662]
[1727463074691,9.74,157.9,157.85,9.74]
[1727463075185,9.74,157.91,157.87,9.74]
[1727463076886,12.9056,157.91,157.88,3.1661]
[1727463077092,1.3023,157.96,157.88,9.74]
[1727463077278,9.74,157.95,157.9,12.9056]
[1727463077885,3.1653,157.92,157.9,9.74]
[1727463078085,3.14492567,157.93,157.9,9.74]
[1727463078287,10.79571382,157.95,157.91,9.74]
[1727463078491,3.1649,157.94,157.92,3.1653]
[1727463078686,3.1649,157.94,157.91,9.74]
[1727463079186,3.1649,157.94,157.91,12.9054]
[1727463080690,10.79231195,157.95,157.94,3.1649]
[1727463080883,10.79231195,157.98,157.93,3.1054154]
[1727463081087,10.79231195,157.98,157.97,9.74]
[1727463081289,4.30070246,158.0,157.98,3.1641]
[1727463081483,4.30070246,158.0,157.98,12.9041]
[1727463083290,4.30070246,158.0,157.98,9.74]
[1727463084385,14.04070246,158.0,157.95,9.74]
[1727463084596,14.54707939,157.99,157.95,9.74]
[1727463084993,3.1642,157.98,157.95,9.74]
[1727463085293,4.80707939,157.99,157.96,9.74]
[1727463086888,7.97107939,157.99,157.96,12.9045]
[1727463087890,4.80707939,157.99,157.97,9.74]
[1727463088098,4.80707939,157.99,157.98,9.74]
[1727463088498,4.80707939,157.99,157.98,12.9041]
[1727463093197,4.80707939,157.99,157.97,9.74]
[1727463093395,4.80707939,157.99,157.98,9.74]
[1727463093799,4.80707939,157.99,157.98,12.9041]
[1727463100501,4.80707939,157.99,157.9,6.3314]
[1727463100712,4.80707939,157.99,157.96,9.74]
[1727463101415,7.97107939,157.99,157.96,12.9044]
[1727463101716,4.80707939,157.99,157.98,9.74]
[1727463102816,4.80707939,157.99,157.97,12.9043]
[1727463105319,4.80707939,157.99,157.98,12.9041]
[1727463112811,4.80707939,157.99,157.98,3.1641]
[1727463113827,4.80707939,157.99,157.97,12.9042]
[1727463114412,7.97107939,157.99,157.96,3.1645]
[1727463114618,7.97107939,157.99,157.96,12.9045]
[1727463116532,3.1641,157.98,157.95,3.1647]
[1727463116838,4.80707939,157.99,157.95,9.74]
[1727463117223,7.97107939,157.99,157.96,12.9045]
[1727463117526,7.97107939,157.99,157.97,9.74]
[1727463117831,4.80707939,157.99,157.97,12.9043]
[1727463119133,4.80707939,157.99,157.98,12.9041]
[1727463120528,4.80707939,157.99,157.98,3.1641]
[1727463120729,4.80707939,157.99,157.98,12.9041]
[1727463123435,4.80707939,157.99,157.98,9.74]
[1727463123642,7.97097939,157.99,157.96,9.74]
[1727463124342,7.97097939,157.99,157.96,12.9044]
[1727463124844,4.80707939,157.99,157.97,12.9043]
[1727463126048,4.80707939,157.99,157.98,12.9041]
[1727463133552,4.80707939,157.99,157.98,3.1641]
[1727463136056,4.80707939,157.99,157.98,12.9041]
[1727463142859,4.30070246,158.0,157.99,3.1639]
[1727463143062,4.30070246,158.0,157.99,12.9039]
[1727463148565,4.30070246,158.0,157.99,3.1639]
[1727463148766,4.30070246,158.0,157.99,12.9039]
[1727463159176,4.10883124,158.02,157.99,9.74]
[1727463159372,4.10883124,158.02,158.01,9.74]
[1727463159680,4.10883124,158.02,158.01,12.9035]
[1727463159975,3.40033227,158.03,158.01,9.74]
[1727463160462,4.65286779,158.04,158.01,9.74]
[1727463160664,4.65286779,158.04,158.03,9.74]
[1727463161069,4.65286779,158.04,158.03,12.9031]
[1727463163887,4.65286779,158.04,158.03,3.1631]
[1727463164082,4.65286779,158.04,158.03,12.9031]
[1727463173075,4.65286779,158.04,158.03,3.1631]
[1727463173275,4.65286779,158.04,158.03,12.9031]
[1727463175582,4.65286779,158.04,158.03,3.1631]
[1727463175785,4.65286779,158.04,158.03,12.9031]
[1727463184990,4.65286779,158.04,158.03,3.1631]
[1727463185184,4.65286779,158.04,158.03,12.9031]
[1727463193024,4.65286779,158.04,157.94,78.6643371]
[1727463193211,4.65286779,158.04,158.01,9.74]
[1727463193518,5.98796779,158.04,158.0,9.74]
[1727463193908,9.15106779,158.04,158.0,9.74]
[1727463194108,9.15106779,158.04,158.01,9.74]
[1727463194917,9.15106779,158.04,157.94,78.6643371]
[1727463194918,5.98796779,158.04,157.94,78.6643371]
[1727463195110,9.74,158.01,157.96,9.74]
[1727463195317,5.79968672,158.0,157.96,9.74]
[1727463195513,8.96348672,158.0,157.96,9.74]
[1727463195715,2.6814,158.0,157.96,9.74]
[1727463195918,2.6814,158.0,157.98,9.74]
[1727463196611,2.6814,158.0,157.99,9.74]
[1727463201625,2.6814,158.0,157.99,12.9039]
[1727463203135,1.3683,158.0,157.99,12.9039]
[1727463208745,1.3683,158.0,157.99,9.74]
[1727463211238,1.3683,158.0,157.98,3.1641]
[1727463211239,4.532,158.0,157.98,9.74]
[1727463211433,1.3683,158.0,157.98,9.74]
[1727463212847,1.3683,158.0,157.98,12.9041]
[1727463214542,1.2773,158.03,158.0,3.1635]
[1727463214742,1.2773,158.03,158.02,9.74]
[1727463215048,1.2773,158.03,158.01,9.74]
[1727463215747,1.2773,158.03,158.01,12.9034]
[1727463217745,4.4404,158.03,158.01,12.9034]
[1727463218351,4.4404,158.03,158.01,3.1634]
[1727463221057,12.9033,158.02,157.94,78.60525639]
[1727463221252,9.74,158.02,157.97,9.74]
[1727463221446,3.1636,158.01,157.98,3.164]
[1727463221747,3.1636,158.01,157.97,9.74]
[1727463222149,3.1636,158.01,157.98,3.1641]
[1727463223254,12.9036,158.01,157.98,3.1641]
[1727463223652,16.00822877,158.01,157.98,3.1641]
[1727463224049,9.74,157.99,157.86,9.5119081]
[1727463224246,9.74,157.98,157.93,9.74]
[1727463224946,12.9043,157.98,157.94,3.1648]
[1727463225456,3.1643,157.97,157.94,3.1648]
[1727463225848,3.1642,157.98,157.94,3.1648]
[1727463226046,3.1642,157.98,157.95,3.1646]
[1727463226559,3.1642,157.98,157.95,12.9046]
[1727463226762,3.164,157.99,157.96,3.1645]
[1727463226951,1.3191,158.0,157.98,9.74]
[1727463227449,1.3191,158.0,157.99,3.1639]
[1727463227645,11.0173,158.03,157.99,9.74]
[1727463227646,1.2773,158.03,157.99,9.74]
[1727463227850,1.2773,158.03,158.01,9.74]
[1727463228857,4.4405,158.03,158.01,12.9035]
[1727463230350,4.65286779,158.04,158.03,3.1631]
[1727463230558,4.65286779,158.04,158.03,12.9031]
[1727463233545,4.65286779,158.04,158.03,3.1631]
[1727463233756,4.65286779,158.04,158.03,12.9031]
[1727463239651,4.65286779,158.04,158.02,3.1632]
[1727463239857,4.65286779,158.04,158.03,9.74]
[1727463240761,4.65286779,158.04,158.03,12.9031]
[1727463241260,4.65286779,158.04,158.03,9.74]
[1727463241460,4.65286779,158.04,158.02,3.1633]
[1727463241461,4.65286779,158.04,158.02,9.74]
[1727463241660,4.65286779,158.04,158.0,9.74]
[1727463242464,7.81586779,158.04,158.0,12.9036]
[1727463242665,4.65286779,158.04,158.0,12.9036]
[1727463243058,7.81586779,158.04,158.0,12.9036]
[1727463244966,3.1632,158.03,158.0,12.9036]
[1727463254664,3.1632,158.03,158.0,9.74]
[1727463255964,3.1632,158.03,158.0,12.9037]
[1727463256162,3.1633,158.02,157.95,3.21924965]
[1727463256469,3.1633,158.02,157.99,9.74]
[1727463256672,3.1634,158.02,157.99,9.74]
[1727463257266,14.39286779,158.04,157.99,9.74]
[1727463257267,3.1636,158.01,157.99,9.74]
[1727463257470,9.74,158.01,157.97,3.1642]
[1727463257675,3.1635,158.02,157.95,9.74]
[1727463257859,9.74,158.01,157.96,9.74]
[1727463258171,3.20550189,158.0,157.97,3.1642]
[1727463258364,6.36930189,158.0,157.97,3.1642]
[1727463258672,6.36930189,158.0,157.94,75.43624887]
[1727463258673,12.94550189,158.0,157.95,9.74]
[1727463258870,3.1641,157.99,157.95,9.74]
[1727463259073,3.20550189,158.0,157.97,9.74]
[1727463259282,12.9037,158.01,157.98,3.1641]
[1727463259466,3.21120056,158.0,157.98,3.1641]
[1727463260767,6.37490056,158.0,157.98,3.1641]
[1727463262378,4.65286779,158.04,157.99,9.74]
[1727463262580,4.65286779,158.04,158.02,9.74]
[1727463263370,7.81596779,158.04,158.01,3.1634]
[1727463263578,4.65286779,158.04,158.03,9.74]
[1727463263879,4.65286779,158.04,158.03,12.9031]
[1727463266881,4.65286779,158.04,158.03,9.74]
[1727463269080,4.65286779,158.04,157.93,6.3299]
[1727463269378,4.65286779,158.04,158.01,9.74]
[1727463270585,7.81576779,158.04,158.01,9.74]
[1727463271384,7.81576779,158.04,158.01,12.9035]
[1727463274486,3.1631,158.03,158.0,12.9037]
[1727463274781,12.9031,158.03,158.0,3.1637]
[1727463275084,23.70305951,158.03,158.0,3.1637]
[1727463276984,12.9033,158.02,158.0,3.1637]